fUSD/lending_fUSD_20240121
["ID","MTS","AMOUNT","RATE_DAILY","PERIOD"]
[312390914,1705857342193,155.0,0.00018896,2]
[312390915,1705857365195,155.0,0.00018896,2]
[312390916,1705857385193,155.0,0.00018896,2]
[312390917,1705857409208,168.70038776,0.00018896,2]
[312390918,1705857449530,5000.0,0.00031,120]
[312390919,1705857520084,467.21,0.00018798,2]
[312390920,1705857979538,443.84,0.00018506,2]
[312390929,1705858231987,-253.21529394,0.00019795,2]
[312390930,1705858231996,-501.74130467,0.00019892,2]
[312390931,1705858232006,-387.20230097,0.00019893,2]
[312390932,1705858232015,-384.862731,0.00019893,2]
[312390933,1705858232025,-289.13231179,0.00019893,2]
[312390934,1705858232040,-867.65374985,0.00019893,2]
[312390935,1705858232049,-516.83340516,0.00019893,2]
[312390936,1705858232059,-1041.92703667,0.00019894,2]
[312390937,1705858232082,-384.45393113,0.00019894,2]
[312390938,1705858232100,-155.0,0.00019894,2]
[312390939,1705858232119,-3128.27475178,0.00019895,2]
[312390940,1705858232139,-162.30418567,0.00019895,2]
[312390941,1705858232155,-300.0,0.00019895,2]
[312390942,1705858232171,-150.0,0.00019895,2]
[312390943,1705858232189,-4352.40637627,0.00019896,2]
[312390944,1705858232206,-4629.1414136,0.00019896,2]
[312390945,1705858232223,-1137.26948524,0.00019897,2]
[312390946,1705858232239,-22622.38392936,0.00019897,2]
[312390947,1705858232258,-32288.92534756,0.000199,2]
[312390948,1705858232298,-1103.95954627,0.000199,2]
[312390949,1705858232316,-449.10045373,0.00019914,2]
[312390950,1705858232335,-4843.47277881,0.00019914,2]
[312390951,1705858232354,-1068.27846557,0.00019946,2]
[312390952,1705858232368,-2477.08702393,0.0002,2]
[312390953,1705858232383,-847.22495319,0.0002,2]
[312390954,1705858232399,-4490.4877716,0.0002,2]
[312390955,1705858232414,-247.24074097,0.0002,2]
[312390956,1705858232428,-155.0,0.0002,2]
[312390957,1705858232443,-281.387604,0.0002,2]
[312390958,1705858232457,-400.0,0.00020341,2]
[312390959,1705858232472,-393.15011915,0.000204,2]
[312390960,1705858232487,-23900.0,0.000204,2]
[312390961,1705858232500,-405.39,0.00020402,2]
[312390962,1705858232515,-166.16,0.00020427,2]
[312390963,1705858232530,-746.13,0.00020447,2]
[312390964,1705858232544,-2000.0,0.00020548,2]
[312390965,1705858232559,-180.19587329,0.00020688,2]
[312390966,1705858232574,-156.01,0.00020699,2]
[312390967,1705858232589,-600.0,0.00020727,2]
[312390968,1705858232604,-161.66,0.00020728,2]
[312390969,1705858232618,-156.01,0.0002073,2]
[312390970,1705858232632,-165.56,0.00020741,2]
[312390971,1705858232648,-156.01,0.00020762,2]
[312390972,1705858232663,-443.84,0.0002077,2]
[312390973,1705858232678,-156.01,0.00020794,2]
[312390974,1705858232692,-156.01,0.00020826,2]
[312390975,1705858232708,-156.01,0.00020858,2]
[312390976,1705858232722,-315.44,0.00020866,2]
[312390977,1705858232737,-156.01,0.0002089,2]
[312390978,1705858232752,-180.0,0.00020912,2]
[312390979,1705858232766,-156.01,0.00020921,2]
[312390980,1705858232781,-9061.929,0.00020921,2]
[312390982,1705858232795,-301.48,0.00020937,2]
[312390985,1705858232809,-2265.81,0.00020951,2]
[312390987,1705858232824,-1635.74,0.00020951,2]
[312390990,1705858232839,-499.99,0.00020951,2]
[312390993,1705858232854,-150.99,0.00020951,2]
[312390995,1705858232868,-156.01,0.00020953,2]
[312390998,1705858232884,-160.23,0.00020959,2]
[312391000,1705858232900,-301.48,0.00020959,2]
[312391003,1705858232916,-301.48,0.00020981,2]
[312391006,1705858232932,-156.01,0.00020985,2]
[312391008,1705858232947,-2306.5799976,0.00020996,2]
[312391011,1705858232962,-2333.67061225,0.00020996,4]
[312391014,1705858232976,-401.57543249,0.00020996,2]
[312391016,1705858232991,-155.8409457,0.00020996,2]
[312391019,1705858233005,-318.525335,0.00020997,2]
[312391021,1705858233021,-39954.33743382,0.00020998,2]
[312391024,1705858233039,-731.05509507,0.00021,2]
[312391027,1705858233054,-301.48,0.00021003,2]
[312391029,1705858233069,-156.01,0.00021017,2]
[312391032,1705858233084,-301.48,0.00021025,2]
[312391035,1705858233100,-159.53,0.00021033,2]
[312391037,1705858233117,-301.48,0.00021047,2]
[312391040,1705858233132,-156.01,0.00021049,2]
[312391042,1705858233149,-301.48,0.00021069,2]
[312391045,1705858233164,-156.01,0.00021081,2]
[312391047,1705858233179,-301.48,0.00021091,2]
[312391050,1705858233194,-156.01,0.00021112,2]
[312391052,1705858233209,-301.48,0.00021113,2]
[312391053,1705858233224,-301.48,0.00021135,2]
[312391054,1705858233238,-166.16,0.00021147,2]
[312391055,1705858233254,-301.48,0.00021157,2]
[312391056,1705858233268,-301.48,0.00021179,2]
[312391057,1705858233283,-301.48,0.00021201,2]
[312391058,1705858233298,-301.48,0.00021223,2]
[312391059,1705858233313,-301.48,0.00021245,2]
[312391060,1705858233328,-301.48,0.00021267,2]
[312391061,1705858233343,-301.48,0.00021289,2]
[312391062,1705858233357,-301.48,0.00021311,2]
[312391063,1705858233377,-301.48,0.00021333,2]
[312391064,1705858233394,-301.48,0.00021355,2]
[312391065,1705858233409,-2436.01,0.00021644,2]
[312391066,1705858233424,-420.0,0.00021666,2]
[312391067,1705858233438,-11417.33,0.00021757,2]
[312391068,1705858233453,-210.0,0.00021885,2]
[312391069,1705858233468,-750.0,0.000219,2]
[312391070,1705858233483,-250.0,0.000219,2]
[312391071,1705858233497,-250.0,0.00021918,2]
[312391072,1705858233511,-176.39,0.00021999,2]
[312391073,1705858233525,-513.66,0.00021999,2]
[312391074,1705858233539,-1250.0,0.00022,3]
[312391075,1705858233553,-155.0,0.00022,2]
[312391076,1705858233567,-150.0,0.00022,2]
[312391077,1705858233587,-161.66,0.00022028,2]
[312391078,1705858233619,-419.33476208,0.00022077,2]
[312391079,1705858233643,-621.82710502,0.00022077,2]
[312391080,1705858233664,-3191.26397536,0.00022079,2]
[312391081,1705858233685,-746.13,0.00022091,2]
[312391082,1705858233704,-159.53,0.00022352,2]
[312391083,1705858233720,-155.11,0.00022432,2]
[312391084,1705858233737,-2436.01,0.00022445,2]
[312391085,1705858233754,-176.39,0.00022547,2]
[312391086,1705858233770,-155.0,0.0002261,2]
[312391087,1705858233786,-150.0,0.00022682,2]
[312391088,1705858233803,-8559.5939,0.000227,2]
[312391089,1705858233819,-155.0,0.00022767,2]
[312391090,1705858233836,-7100.30431289,0.0002277,2]
[312391091,1705858234139,-150.0,0.0002277,2]
[312391092,1705858234149,-150.0,0.0002277,2]
[312391093,1705858234159,-150.76362,0.0002277,2]
[312391094,1705858234168,-2712.45923272,0.0002277,2]
[312391095,1705858234177,-180.0,0.00022779,2]
[312391096,1705858234187,-3652.8371,0.000228,2]
[312391097,1705858234196,-2616.6926,0.000228,2]
[312391098,1705858234205,-2063.5834085,0.000228,2]
[312391099,1705858234214,-1576.5948,0.000228,2]
[312391100,1705858234224,-155.0,0.000228,2]
[312391101,1705858234233,-1408.96793877,0.000228,2]
[312391102,1705858234243,-400.0,0.00022884,2]
[312391103,1705858234252,-1000.0,0.00022897,2]
[312391104,1705858234261,-500.0,0.00022897,2]
[312391105,1705858234270,-189.10579447,0.00022899,2]
[312391106,1705858234279,-409.0,0.000229,2]
[312391107,1705858234289,-177.17930462,0.000229,2]
[312391108,1705858234298,-100000.0,0.000229,2]
[312391109,1705858234308,-2862.497,0.000229,2]
[312391110,1705858234321,-2806.0813,0.000229,2]
[312391111,1705858234331,-1000.0,0.000229,2]
[312391112,1705858234341,-890.17295169,0.000229,2]
[312391113,1705858234350,-1274.33564504,0.000229,2]
[312391114,1705858234360,-156.06191134,0.000229,2]
[312391115,1705858234369,-165.80791652,0.000229,2]
[312391116,1705858234379,-165.80791649,0.000229,2]
[312391117,1705858234389,-165.80791649,0.000229,2]
[312391118,1705858234399,-165.80791649,0.000229,2]
[312391119,1705858234409,-165.80791649,0.000229,2]
[312391120,1705858234420,-165.80791649,0.000229,2]
[312391121,1705858234429,-165.80791649,0.000229,2]
[312391122,1705858234439,-165.80791649,0.000229,2]
[312391123,1705858234448,-660.58808609,0.000229,2]
[312391124,1705858234458,-161.94573961,0.000229,4]
[312391125,1705858234468,-4975.83215402,0.000229,2]
[312391126,1705858234477,-158.61316834,0.000229,2]
[312391127,1705858234487,-194.4155184,0.00022989,2]
[312391128,1705858234498,-1203.42619613,0.00022995,2]
[312391129,1705858234508,-523.90953514,0.00022995,2]
[312391130,1705858234516,-155.39285442,0.00022995,2]
[312391131,1705858234526,-473.20829439,0.00022995,2]
[312391132,1705858234536,-766.57403031,0.00022995,2]
[312391133,1705858234545,-581.89521876,0.00022995,2]
[312391134,1705858234554,-1914.85650932,0.00022995,2]
[312391135,1705858234564,-6437.51501996,0.00022995,2]
[312391136,1705858234574,-163.94799858,0.00022996,2]
[312391137,1705858234583,-3859.00309907,0.00022996,2]
[312391138,1705858234593,-2020.14907703,0.00022996,2]
[312391139,1705858234602,-200.0,0.00022997,2]
[312391140,1705858234612,-155.0,0.00022997,2]
[312391141,1705858234622,-698.04764279,0.00022997,2]
[312391142,1705858234631,-185.11529179,0.00022997,2]
[312391143,1705858234641,-284.94387403,0.00022997,2]
[312391144,1705858234654,-940.13112153,0.00022997,2]
[312391145,1705858234664,-1766.13596665,0.00022997,2]
[312391146,1705858234674,-129389.55781263,0.00022997,2]
[312391147,1705858234684,-265.7489314,0.00022997,2]
[312391148,1705858234694,-159.43596695,0.00022997,2]
[312391149,1705858234704,-2239.87230063,0.00022997,2]
[312391150,1705858234713,-376.11195413,0.00022997,2]
[312391151,1705858234723,-263.3780082,0.00022997,2]
[312391152,1705858234733,-363.71579779,0.00022997,2]
[312391153,1705858234742,-496.3767871,0.00022997,2]
[312391154,1705858234752,-183.31936431,0.00022997,2]
[312391155,1705858234762,-633.84130694,0.00022997,2]
[312391156,1705858234772,-156.79778886,0.00022997,2]
[312391157,1705858234781,-228.53612585,0.00022997,2]
[312391158,1705858234791,-1178.12872526,0.00022997,2]
[312391159,1705858234800,-240.49265889,0.00022997,2]
[312391160,1705858234810,-400.49631335,0.00022997,2]
[312391161,1705858234819,-160.6463697,0.00022997,2]
[312391162,1705858234829,-196.30617543,0.00022997,2]
[312391163,1705858234839,-235.12703746,0.00022997,2]
[312391164,1705858234849,-155.0,0.00022997,2]
[312391165,1705858234858,-525.13031087,0.00022997,2]
[312391166,1705858234868,-155.0,0.00022997,2]
[312391167,1705858234878,-204.28991244,0.00022997,2]
[312391168,1705858234888,-220.39096062,0.00022997,2]
[312391169,1705858234897,-236.60772836,0.00022997,2]
[312391170,1705858234907,-651.76209495,0.00022998,2]
[312391171,1705858234917,-1055.69985772,0.00022998,2]
[312391172,1705858234927,-2138.27006728,0.00022998,2]
[312391173,1705858234937,-500.0,0.00022998,2]
[312391174,1705858234946,-418.21791161,0.00022999,2]
[312391175,1705858234956,-2620.69698088,0.00022999,2]
[312391176,1705858234966,-7785.67500435,0.00022999,2]
[312391177,1705858234976,-302.33095345,0.00022999,2]
[312391178,1705858234986,-543.40300845,0.00022999,2]
[312391179,1705858234996,-31532.21488971,0.00022999,2]
[312391180,1705858235006,-943632.57575811,0.00022999,2]
[312391181,1705858236059,-434.35600905,0.00022999,2]
[312391182,1705858236190,-16398.30073846,0.00022999,2]
[312391183,1705858236202,-5404.96233349,0.00022999,2]
[312391184,1705858236240,-367.51368708,0.00022999,2]
[312391225,1705858238610,-521.09835095,0.00019892,2]
[312391227,1705858238619,-13651.69519873,0.00019894,2]
[312391232,1705858238639,-2356.03766972,0.00019894,2]
[312391236,1705858238651,-17385.15202538,0.00019894,2]
[312391238,1705858238660,-247.24074097,0.0002034,2]
[312391240,1705858238670,-438.58817944,0.000229,2]
[312391242,1705858238679,-90991.72741392,0.00022999,2]
[312391244,1705858238688,-150.0,0.00022999,2]
[312391246,1705858238697,-150.0,0.00022999,2]
[312391249,1705858238707,-150.0,0.00022999,2]
[312391251,1705858238715,-150.0,0.00022999,2]
[312391253,1705858238725,-150.0,0.00022999,2]
[312391255,1705858238734,-150.0,0.00022999,2]
[312391257,1705858238743,-1811645.90794818,0.00023,2]
[312391259,1705858238752,-280913.4491055,0.00023,2]
[312391261,1705858238761,-389229.52756438,0.00023,2]
[312391263,1705858238770,-511.56484761,0.00023,2]
[312391265,1705858238779,-610.29126095,0.00023,2]
[312391267,1705858238788,-2000.0,0.00023,2]
[312391269,1705858238797,-200.0,0.00023,2]
[312391271,1705858238805,-443.84,0.00023034,2]
[312391273,1705858238815,-176.39,0.00023095,2]
[312391275,1705858238824,-1811.99592171,0.0002323,2]
[312391277,1705858238834,-2436.01,0.00023245,2]
[312391279,1705858238844,-600.0,0.00023318,2]
[312391281,1705858238853,-161.66,0.00023328,2]
[312391283,1705858238862,-500.0,0.00023546,2]
[312391285,1705858238872,-180.0,0.00023594,2]
[312391287,1705858238881,-351.28,0.00023643,2]
[312391289,1705858238891,-159.53,0.00023671,2]
[312391291,1705858238900,-746.13,0.00023735,2]
[312391293,1705858238910,-500.25631957,0.00023998,2]
[312391295,1705858238919,-5000.0,0.00024,2]
[312391297,1705858238929,-1300.0,0.00024,3]
[312391299,1705858238938,-155.2852582,0.00024,2]
[312391301,1705858238947,-201.16205573,0.00024,2]
[312391303,1705858238957,-2436.01,0.00024046,2]
[312391305,1705858238966,-890.17295161,0.00024082,2]
[312391307,1705858238975,-500.0,0.00024094,2]
[312391309,1705858238984,-216.20740399,0.000243,2]
[312391311,1705858238993,-182.48,0.00024522,2]
[312391313,1705858239003,-182.48,0.00024548,2]
[312391315,1705858239012,-182.48,0.00024574,2]
[312391317,1705858239021,-182.48,0.00024599,2]
[312391319,1705858239033,-182.48,0.00024625,2]
[312391321,1705858239051,-161.66,0.00024628,2]
[312391324,1705858239061,-500.0,0.00024642,2]
[312391326,1705858239071,-182.48,0.00024651,2]
[312391328,1705858239082,-250.0,0.00024658,2]
[312391330,1705858239092,-1408.9679387,0.00024671,2]
[312391332,1705858239102,-182.48,0.00024677,2]
[312391334,1705858239111,-182.48,0.00024703,2]
[312391336,1705858239120,-182.48,0.00024728,2]
[312391338,1705858239129,-182.48,0.00024754,2]
[312391340,1705858239139,-182.48,0.0002478,2]
[312391342,1705858239148,-182.48,0.00024806,2]
[312391344,1705858239156,-182.48,0.00024832,2]
[312391346,1705858239165,-2436.01,0.00024847,2]
[312391347,1705858239175,-182.48,0.00024857,2]
[312391349,1705858239184,-182.48,0.00024883,2]
[312391351,1705858239193,-182.48,0.00024909,2]
[312391354,1705858239202,-182.48,0.00024935,2]
[312391356,1705858239211,-182.48,0.00024961,2]
[312391358,1705858239221,-182.48,0.00024986,2]
[312391360,1705858239230,-159.53,0.0002499,2]
[312391362,1705858239239,-688.44742774,0.00025,2]
[312391364,1705858239248,-12017.99206168,0.00025,2]
[312391366,1705858239257,-563.32688308,0.00025,2]
[312391368,1705858239267,-587.2284006,0.00025,2]
[312391370,1705858239276,-1877.50803986,0.00025,2]
[312391372,1705858239285,-31947.0,0.00025,2]
[312391374,1705858239294,-3359.0,0.00025,2]
[312391376,1705858239303,-182.48,0.00025012,2]
[312391378,1705858239312,-500.0,0.0002519,2]
[312391380,1705858239321,-890.17295161,0.00025264,2]
[312391382,1705858239330,-443.84,0.00025298,2]
[312391384,1705858239339,-746.13,0.00025379,2]
[312391386,1705858239348,-400.0,0.00025426,2]
[312391388,1705858239357,-500.0,0.00025738,2]
[312391390,1705858239366,-594.0,0.000259,2]
[312391392,1705858239375,-600.0,0.00025909,2]
[312391394,1705858239384,-201.0,0.0002595,2]
[312391396,1705858239392,-1350.0,0.00026,3]
[312391398,1705858239401,-500.0,0.00026286,2]
[312391400,1705858239410,-890.17295161,0.00026445,2]
[312391402,1705858239419,-1408.9679387,0.00026543,3]
[312391404,1705858239429,-156.06191131,0.00026555,2]
[312391406,1705858239439,-6018.28,0.00026575,2]
[312391408,1705858239448,-1000.0,0.00026575,2]
[312391410,1705858239457,-500.0,0.00026834,2]
[312391412,1705858239466,-746.13,0.00027023,2]
[312391414,1705858239476,-500.0,0.00027382,2]
[312391416,1705858239485,-1000.0,0.00027397,2]
[312391418,1705858239494,-443.84,0.00027562,2]
[312391420,1705858239503,-890.17295161,0.00027627,2]
[312391422,1705858239512,-500.0,0.0002793,2]
[312391424,1705858239521,-400.0,0.00027969,2]
[312391426,1705858239531,-1400.0,0.00028,3]
[312391428,1705858239540,-1068.27846556,0.00028121,2]
[312391430,1705858239549,-2907.0,0.00028229,2]
[312391432,1705858239558,-19709.0,0.00028229,2]
[312391434,1705858239567,-946.0,0.00028229,2]
[312391436,1705858239577,-2274.0,0.00028229,2]
[312391438,1705858239586,-836.0,0.00028229,2]
[312391440,1705858239595,-528.0,0.00028229,2]
[312391442,1705858239604,-1233.0,0.00028229,2]
[312391444,1705858239613,-703.0,0.00028229,2]
[312391446,1705858239623,-326.442,0.00028229,2]
[312391448,1705858239632,-1030.0,0.00028229,2]
[312391450,1705858239642,-164.208,0.00028229,2]
[312391452,1705858239651,-1250.0,0.00028229,2]
[312391454,1705858239660,-594.0,0.00028229,2]
[312391456,1705858239669,-554.706,0.00028229,2]
[312391458,1705858239678,-997.0,0.00028229,2]
[312391460,1705858239687,-2061.413,0.00028229,2]
[312391462,1705858239696,-1408.9679387,0.00028414,4]
[312391464,1705858239706,-500.0,0.00028478,2]
[312391466,1705858239715,-600.0,0.000285,2]
[312391468,1705858239724,-405.39,0.00028563,2]
[312391470,1705858239733,-746.13,0.00028667,2]
[312391472,1705858239742,-200.0,0.00028767,7]
[312391474,1705858239751,-200.0,0.00028767,7]
[312391476,1705858239760,-1000.0,0.00028767,2]
[312391478,1705858239769,-890.17295161,0.00028809,2]
[312391481,1705858239779,-41486.35611939,0.00029,2]
[312391484,1705858239788,-500.0,0.00029026,2]
[312391486,1705858239797,-201.0,0.00029046,7]
[312391489,1705858239806,-4975.832154,0.00029348,2]
[312391492,1705858239815,-322.99442589,0.0002945,2]
[312391494,1705858239824,-155.0,0.000295,3]
[312391496,1705858239833,-500.0,0.00029573,2]
[312391498,1705858239842,-7999.99,0.000298,6]
[312391500,1705858239851,-731.25712485,0.000298,2]
[312391502,1705858239860,-175.58250697,0.000298,2]
[312391504,1705858239869,-443.84,0.00029826,2]
[312391506,1705858239878,-628.2682943,0.0002998,3]
[312391508,1705858239887,-292.5,0.0002998,3]
[312391510,1705858239896,-890.17295161,0.00029991,2]
[312391512,1705858239905,-100000.0,0.0003,2]
[312391514,1705858239914,-151.0,0.0003,7]
[312391516,1705858239923,-151.0,0.0003,7]
[312391518,1705858239932,-544.130464,0.0003,7]
[312391520,1705858239941,-544.130464,0.0003,7]
[312391522,1705858239951,-151.0,0.0003,7]
[312391524,1705858239960,-151.0,0.0003,7]
[312391526,1705858239969,-151.0,0.0003,7]
[312391528,1705858239978,-328.222102,0.0003,7]
[312391530,1705858239987,-328.222102,0.0003,7]
[312391532,1705858239996,-250.0,0.0003,7]
[312391534,1705858240006,-250.0,0.0003,7]
[312391536,1705858240015,-151.0,0.0003,7]
[312391538,1705858240024,-151.0,0.0003,7]
[312391541,1705858240037,-151.0,0.0003,7]
[312391542,1705858240046,-151.0,0.0003,7]
[312391544,1705858240055,-151.0,0.0003,7]
[312391547,1705858240065,-151.0,0.0003,7]
[312391549,1705858240074,-151.0,0.0003,7]
[312391551,1705858240083,-151.0,0.0003,7]
[312391553,1705858240092,-156.139311,0.0003,7]
[312391555,1705858240101,-156.139311,0.0003,7]
[312391557,1705858240112,-151.0,0.0003,7]
[312391558,1705858240122,-151.0,0.0003,7]
[312391560,1705858240131,-151.0,0.0003,7]
[312391562,1705858240140,-411.658369,0.0003,7]
[312391565,1705858240150,-411.658369,0.0003,7]
[312391567,1705858240160,-158.868333,0.0003,7]
[312391568,1705858240169,-158.868333,0.0003,7]
[312391571,1705858240178,-151.0,0.0003,7]
[312391573,1705858240188,-151.0,0.0003,7]
[312391575,1705858240197,-151.0,0.0003,7]
[312391577,1705858240207,-155.567935,0.0003,7]
[312391579,1705858240217,-151.0,0.0003,7]
[312391580,1705858240226,-151.0,0.0003,7]
[312391583,1705858240235,-2604.058915,0.0003,7]
[312391585,1705858240245,-2604.058915,0.0003,7]
[312391586,1705858240254,-299.647335,0.0003,7]
[312391587,1705858240263,-299.647335,0.0003,7]
[312391588,1705858240272,-1098.304349,0.0003,7]
[312391589,1705858240281,-1098.304349,0.0003,7]
[312391590,1705858240291,-151.0,0.0003,7]
[312391591,1705858240300,-151.0,0.0003,7]
[312391592,1705858240310,-151.0,0.0003,7]
[312391594,1705858240319,-151.0,0.0003,7]
[312391595,1705858240329,-1273.934367,0.0003,7]
[312391596,1705858240339,-1273.934367,0.0003,7]
[312391597,1705858240349,-151.0,0.0003,7]
[312391598,1705858240358,-764.11347582,0.0003,4]
[312391600,1705858240367,-155.0,0.0003,2]
[312391603,1705858240376,-192.291184,0.0003,2]
[312391605,1705858240386,-479.68289794,0.0003,4]
[312391607,1705858240395,-2164.18588237,0.0003,4]
[312391609,1705858240404,-814.77139792,0.0003,4]
[312391611,1705858240413,-1171.2582062,0.0003,4]
[312391613,1705858240422,-468.14271149,0.0003,4]
[312391615,1705858240432,-910.06453559,0.0003,4]
[312391617,1705858240441,-72888.49331916,0.0003,4]
[312391619,1705858240451,-8835.80672558,0.0003,4]
[312391621,1705858240460,-6066.12329128,0.0003,2]
[312391624,1705858240470,-2782.97946281,0.0003,2]
[312391627,1705858240479,-1450.0,0.0003,3]
[312391630,1705858240488,-150.0,0.0003,7]
[312391633,1705858240497,-500.0,0.0003,2]
[312391636,1705858240506,-307.48534238,0.0003,2]
[312391639,1705858240515,-500.0,0.00030121,2]
[312391641,1705858240525,-1000.0,0.00030136,2]
[312391643,1705858240534,-152.04,0.00030137,2]
[312391645,1705858240543,-200.0,0.00030137,2]
[312391647,1705858240553,-156.06191131,0.0003021,2]
[312391649,1705858240563,-1408.9679387,0.00030286,5]
[312391651,1705858240571,-10397.84126192,0.00030495,5]
[312391653,1705858240581,-400.0,0.00030512,2]
[312391655,1705858240590,-6924.4,0.0003062,2]
[312391657,1705858240599,-3604.13,0.0003062,2]
[312391659,1705858240608,-150.0,0.00030669,2]
[312391661,1705858240617,-100000.0,0.00031,2]
[312391663,1705858240627,-15945.42619591,0.00031,2]
[312391665,1705858240636,-200.0,0.00031,2]
[312391667,1705858240645,-3420.11881211,0.00031,5]
[312391669,1705858240654,-5840.82062477,0.00031,4]
[312391671,1705858240663,-200.0,0.00031,2]
[312391673,1705858240672,-2000.0,0.00031,2]
[312391675,1705858240682,-4000.0,0.00031,2]
[312391677,1705858240691,-600.0,0.00031091,2]
[312391679,1705858240701,-890.17295161,0.00031173,2]
[312391698,1705858240863,-1313.862,0.00031229,2]
[312391700,1705858240873,-167.576,0.00031229,2]
[312391702,1705858240883,-1233.0,0.00031229,2]
[312391704,1705858240893,-595.851,0.00031229,2]
[312391706,1705858240903,-214.0,0.00031229,2]
[312391708,1705858240913,-1250.0,0.00031229,2]
[312391710,1705858240922,-499.673,0.00031229,2]
[312391712,1705858240932,-426.0,0.00031229,2]
[312391714,1705858240941,-997.0,0.00031229,2]
[312391716,1705858240950,-1935.0,0.00031229,2]
[312391718,1705858240960,-1000.0,0.000315,2]
[312391720,1705858240970,-1000.0,0.00031506,2]
[312391722,1705858240979,-800.0,0.00031741,7]
[312391724,1705858240990,-800.0,0.00031742,7]
[312391726,1705858240999,-800.0,0.00031743,7]
[312391728,1705858241009,-200.0,0.00031743,7]
[312391730,1705858241019,-800.0,0.00031743,7]
[312391732,1705858241030,-150.0,0.00031799,2]
[312391734,1705858241045,-150.0,0.00031799,2]
[312391736,1705858241058,-329547.755748,0.000318,3]
[312391738,1705858241067,-528.46062216,0.00031994,4]
[312391740,1705858241078,-155.41027789,0.00031994,4]
[312391742,1705858241087,-260.50122287,0.00031994,4]
[312391744,1705858241096,-206.73159676,0.00031994,4]
[312391747,1705858241106,-209.21422491,0.00031994,4]
[312391749,1705858241117,-400.0,0.00031995,2]
[312391751,1705858241128,-363.2167769,0.00031995,4]
[312391753,1705858241137,-160.99807622,0.00031996,4]
[312391755,1705858241146,-1256.24889353,0.00031996,4]
[312391757,1705858241155,-332.77661456,0.00031996,4]
[312391759,1705858241165,-252.47622951,0.00031996,4]
[312391761,1705858241174,-156.6051087,0.00031996,4]
[312391763,1705858241183,-155.22013602,0.00031996,2]
[312391765,1705858241193,-314.64142512,0.00031996,4]
[312391767,1705858241203,-155.0,0.00031996,4]
[312391769,1705858241214,-157.39865583,0.00031996,4]
[312391771,1705858241223,-376.78302695,0.00031996,4]
[312391773,1705858241233,-246.31239322,0.00031996,4]
[312391775,1705858241242,-204.38101367,0.00031997,4]
[312391777,1705858241253,-1485.51430148,0.00031998,4]
[312391778,1705858241262,-4285.1857248,0.00031998,4]
[312391781,1705858241272,-313.5325998,0.00031998,4]
[312391782,1705858241281,-222.50250077,0.00031999,4]
[312391785,1705858241290,-419.11443701,0.00031999,4]
[312391787,1705858241300,-2930.55908908,0.00031999,2]
[312391789,1705858241309,-100000.0,0.00032,2]
[312391791,1705858241319,-151.0,0.00032,7]
[312391793,1705858241329,-129759.86397555,0.00032,2]
[312391794,1705858241338,-155.0,0.00032,2]
[312391797,1705858241348,-1500.0,0.00032,3]
[312391799,1705858241357,-408.64,0.00032006,2]
[312391801,1705858241366,-416.7,0.00032006,2]
[312391803,1705858241375,-150.0,0.00032006,2]
[312391805,1705858241384,-314.65,0.00032006,2]
[312391806,1705858241393,-961.44,0.00032012,2]
[312391808,1705858241402,-443.84,0.0003209,2]
[312391810,1705858241411,-151.0,0.00032093,7]